lending/lending_fUSD_20250516
["ID","MTS","AMOUNT","RATE_DAILY","PERIOD"]
[361268656,1747407049441,-400.0,0.00016438,2]
[361268657,1747407049451,-400.0,0.00016438,2]
[361268658,1747407049460,-400.0,0.00016438,2]
[361268659,1747407049470,-2365.52,0.00016438,2]
[361268660,1747407049479,-270.38148232,0.00016438,2]
[361268661,1747407049488,-618.89,0.00016438,2]
[361268662,1747407049498,-400.0,0.00016438,2]
[361268663,1747407049507,-571.85,0.00016438,2]
[361268664,1747407049516,-400.0,0.00016438,2]
[361268665,1747407049525,-1038.76,0.00016438,2]
[361268666,1747407049535,-665.05,0.00016438,2]
[361268667,1747407049544,-407.75,0.00016438,2]
[361268668,1747407049553,-400.0,0.00016438,2]
[361268669,1747407049563,-1034.89,0.00016438,2]
[361268670,1747407049572,-561.66,0.00016438,2]
[361268671,1747407049581,-471.14,0.00016438,2]
[361268672,1747407049591,-400.0,0.00016438,2]
[361268673,1747407049600,-400.0,0.00016438,2]
[361268674,1747407049609,-532.19,0.00016438,2]
[361268675,1747407049619,-400.0,0.00016438,2]
[361268676,1747407049628,-400.0,0.00016438,2]
[361268677,1747407049638,-500.39,0.00016438,2]
[361268678,1747407049648,-400.0,0.00016438,2]
[361268679,1747407049658,-1410.15,0.00016438,2]
[361268680,1747407049667,-455.79,0.00016438,2]
[361268681,1747407049677,-637.31,0.00016438,2]
[361268682,1747407049686,-500.0,0.00016438,2]
[361268683,1747407049695,-500.0,0.00016438,2]
[361268684,1747407049705,-500.0,0.00016438,2]
[361268685,1747407049715,-500.0,0.00016438,2]
[361268686,1747407049724,-493.44081331,0.00016438,2]
[361268687,1747407049953,-688.77,0.00016438,2]
[361268688,1747407049964,-1671.32,0.00016438,2]
[361268689,1747407049974,-400.0,0.00016438,2]
[361268690,1747407049984,-400.0,0.00016438,2]
[361268691,1747407049993,-856.09,0.00016438,2]
[361268692,1747407050003,-400.0,0.00016438,2]
[361268693,1747407050013,-400.0,0.00016438,2]
[361268694,1747407050022,-400.0,0.00016438,2]
[361268695,1747407050032,-839.3,0.00016438,2]
[361268696,1747407050043,-2016.67,0.00016438,2]
[361268697,1747407050052,-1287.14,0.00016438,2]
[361268698,1747407050062,-400.0,0.00016438,2]
[361268699,1747407050072,-424.23,0.00016438,2]
[361268700,1747407050081,-891.97,0.00016438,2]
[361268701,1747407050090,-400.0,0.00016438,2]
[361268702,1747407050100,-1155.91,0.00016438,2]
[361268703,1747407050110,-400.0,0.00016438,2]
[361268704,1747407050120,-151.0,0.00016438,2]
[361268705,1747407050129,-514.56653966,0.00016438,2]
[361268706,1747407050139,-400.0,0.00016438,2]
[361268707,1747407050148,-400.0,0.00016438,2]
[361268708,1747407050158,-400.0,0.00016438,2]
[361268709,1747407050167,-400.0,0.00016438,2]
[361268710,1747407050177,-563.92,0.00016438,2]
[361268711,1747407050187,-400.0,0.00016438,2]
[361268712,1747407050196,-151.0,0.00016438,2]
[361268713,1747407050206,-1076.02,0.00016438,2]
[361268714,1747407050216,-400.0,0.00016438,2]
[361268715,1747407050225,-400.0,0.00016438,2]
[361268716,1747407050235,-539.71,0.00016438,2]
[361268717,1747407050245,-400.0,0.00016438,2]
[361268718,1747407050254,-472.55,0.00016438,2]
[361268719,1747407050264,-400.0,0.00016438,2]
[361268720,1747407050273,-400.0,0.00016438,2]
[361268721,1747407050283,-501.4,0.00016438,2]
[361268722,1747407050294,-331.6893707,0.00016438,2]
[361268723,1747407050304,-655.36,0.00016438,2]
[361268724,1747407050314,-400.0,0.00016438,2]
[361268725,1747407050323,-400.0,0.00016438,2]
[361268726,1747407050333,-1755.51,0.00016438,2]
[361268727,1747407050342,-6997.92,0.00016438,2]
[361268728,1747407050352,-400.0,0.00016438,2]
[361268729,1747407050361,-746.53,0.00016438,2]
[361268730,1747407050371,-400.0,0.00016438,2]
[361268731,1747407050380,-813.67,0.00016438,2]
[361268732,1747407050390,-400.0,0.00016438,2]
[361268733,1747407050399,-992.01,0.00016438,2]
[361268734,1747407050409,-400.0,0.00016438,2]
[361268735,1747407050418,-400.0,0.00016438,2]
[361268736,1747407050428,-400.0,0.00016438,2]
[361268737,1747407050437,-993.75,0.00016438,2]
[361268738,1747407050446,-400.0,0.00016438,2]
[361268739,1747407050456,-1487.23,0.00016438,2]
[361268740,1747407050465,-400.0,0.00016438,2]
[361268741,1747407050475,-400.0,0.00016438,2]
[361268742,1747407050484,-400.0,0.00016438,2]
[361268743,1747407050494,-1890.03,0.00016438,2]
[361268744,1747407050504,-619.22,0.00016438,2]
[361268745,1747407050513,-526.29,0.00016438,2]
[361268746,1747407050523,-1043.05,0.00016438,2]
[361268747,1747407050533,-400.0,0.00016438,2]
[361268748,1747407050544,-400.0,0.00016438,2]
[361268749,1747407050554,-400.0,0.00016438,2]
[361268750,1747407050563,-404.41,0.00016438,2]
[361268751,1747407050572,-151.0,0.00016438,2]
[361268752,1747407050582,-1475.57,0.00016438,2]
[361268753,1747407050591,-6866.78,0.00016438,2]
[361268754,1747407050599,-400.0,0.00016438,2]
[361268755,1747407050609,-400.0,0.00016438,2]
[361268756,1747407050618,-1395.13,0.00016438,2]
[361268757,1747407050628,-400.0,0.00016438,2]
[361268758,1747407050637,-400.0,0.00016438,2]
[361268759,1747407050646,-400.0,0.00016438,2]
[361268760,1747407050655,-400.0,0.00016438,2]
[361268761,1747407050665,-400.0,0.00016438,2]
[361268762,1747407050675,-1034.57,0.00016438,2]
[361268763,1747407050684,-400.0,0.00016438,2]
[361268764,1747407050695,-410.46916638,0.00016438,2]
[361268765,1747407050704,-3758.41,0.00016438,2]
[361268766,1747407050713,-300.26846619,0.00016438,2]
[361268767,1747407050723,-537.15,0.00016438,2]
[361268768,1747407050732,-415.01,0.00016438,2]
[361268769,1747407050742,-400.0,0.00016438,2]
[361268770,1747407050754,-2097.62,0.00016438,2]
[361268771,1747407050764,-543.09,0.00016438,2]
[361268772,1747407050774,-400.0,0.00016438,2]
[361268773,1747407050783,-423.08,0.00016438,2]
[361268774,1747407050794,-400.0,0.00016438,2]
[361268775,1747407050803,-400.0,0.00016438,2]
[361268776,1747407050813,-534.45,0.00016438,2]
[361268777,1747407050822,-400.0,0.00016438,2]
[361268778,1747407050833,-400.0,0.00016438,2]
[361268779,1747407050844,-400.0,0.00016438,2]
[361268780,1747407050856,-400.0,0.00016438,2]
[361268781,1747407050866,-400.0,0.00016438,2]
[361268782,1747407050876,-400.0,0.00016438,2]
[361268783,1747407050885,-367.01572885,0.00016438,2]
[361268784,1747407050895,-7073.32,0.00016438,2]
[361268785,1747407050904,-400.0,0.00016438,2]
[361268786,1747407050914,-400.0,0.00016438,2]
[361268787,1747407050923,-400.0,0.00016438,2]
[361268788,1747407050933,-766.477824,0.00016438,2]
[361268789,1747407050943,-510.77,0.00016438,2]
[361268790,1747407050953,-400.0,0.00016438,2]
[361268791,1747407050963,-766.477824,0.00016438,2]
[361268792,1747407050972,-766.477824,0.00016438,2]
[361268793,1747407050982,-446.28,0.00016438,2]
[361268794,1747407050991,-400.0,0.00016438,2]
[361268795,1747407051001,-401.20735324,0.00016438,2]
[361268796,1747407051010,-732.84,0.00016438,2]
[361268797,1747407051020,-1127.89,0.00016438,2]
[361268798,1747407051030,-519.15,0.00016438,2]
[361268799,1747407051040,-400.0,0.00016438,2]
[361268800,1747407051050,-400.0,0.00016438,2]
[361268801,1747407051060,-843.59,0.00016438,2]
[361268802,1747407051069,-400.0,0.00016438,2]
[361268803,1747407051079,-183996.22,0.00016438,2]
[361268804,1747407051088,-952.85,0.00016438,2]
[361268805,1747407051098,-397.32451298,0.00016438,2]
[361268806,1747407051108,-1606.04,0.00016438,2]
[361268807,1747407051117,-2694.49,0.00016438,2]
[361268808,1747407051128,-569.04,0.00016438,2]
[361268809,1747407051137,-400.0,0.00016438,2]
[361268810,1747407051147,-790.33,0.00016438,2]
[361268811,1747407051157,-732.08,0.00016438,2]
[361268812,1747407051167,-650.83,0.00016438,2]
[361268813,1747407051176,-462.37034215,0.00016438,2]
[361268814,1747407051186,-400.0,0.00016438,2]
[361268815,1747407051196,-400.0,0.00016438,2]
[361268816,1747407051206,-659.32,0.00016438,2]
[361268817,1747407051216,-511.38,0.00016438,2]
[361268818,1747407051226,-958.0,0.00016438,2]
[361268819,1747407051236,-987.76,0.00016438,2]
[361268820,1747407051246,-1025.85,0.00016438,2]
[361268821,1747407051255,-531.5,0.00016438,2]
[361268822,1747407051265,-400.0,0.00016438,2]
[361268823,1747407051274,-613.54,0.00016438,2]
[361268824,1747407051284,-400.0,0.00016438,2]
[361268825,1747407051295,-400.0,0.00016438,2]
[361268826,1747407051305,-947.19,0.00016438,2]
[361268827,1747407051315,-400.0,0.00016438,2]
[361268828,1747407051324,-1776.4,0.00016438,2]
[361268829,1747407051334,-400.0,0.00016438,2]
[361268830,1747407051345,-1341.41,0.00016438,2]
[361268831,1747407051355,-1084.6,0.00016438,2]
[361268832,1747407051364,-9387.89,0.00016438,2]
[361268833,1747407051374,-2061.04,0.00016438,2]
[361268834,1747407051383,-400.0,0.00016438,2]
[361268835,1747407051392,-400.0,0.00016438,2]
[361268836,1747407051401,-400.0,0.00016438,2]
[361268837,1747407051411,-415.60737168,0.00016438,2]
[361268838,1747407051420,-400.0,0.00016438,2]
[361268839,1747407051430,-400.0,0.00016438,2]
[361268840,1747407051440,-916.78,0.00016438,2]
[361268841,1747407051450,-400.0,0.00016438,2]
[361268842,1747407051459,-151.39276288,0.00016438,2]
[361268843,1747407051468,-713.8,0.00016438,2]
[361268844,1747407051478,-19748.248853,0.00016438,2]
[361268845,1747407051487,-400.0,0.00016438,2]
[361268846,1747407051496,-18523.24,0.00016438,2]
[361268847,1747407051506,-460.45665719,0.00016438,2]
[361268848,1747407051515,-947.27134,0.00016438,2]
[361268849,1747407051525,-19748.248853,0.00016438,2]
[361268850,1747407051534,-19748.248853,0.00016438,2]
[361268851,1747407051545,-1124.63,0.00016438,2]
[361268852,1747407051554,-1853.89,0.00016438,2]
[361268853,1747407051564,-947.27134,0.00016438,2]
[361268854,1747407051573,-947.27134,0.00016438,2]
[361268855,1747407051583,-337.55962421,0.00016438,2]
[361268856,1747407051593,-400.0,0.00016438,2]
[361268857,1747407051602,-634.0,0.00016438,2]
[361268858,1747407051612,-14206.17,0.00016438,2]
[361268859,1747407051621,-400.0,0.00016438,2]
[361268860,1747407051631,-400.0,0.00016438,2]
[361268861,1747407051643,-461.77,0.00016438,2]
[361268862,1747407051653,-400.0,0.00016438,2]
[361268863,1747407051663,-400.0,0.00016438,2]
[361268864,1747407051672,-13811.24,0.00016438,2]
[361268865,1747407051682,-670.97,0.00016438,2]
[361268866,1747407051691,-1275.52,0.00016438,2]
[361268867,1747407051701,-617.89,0.00016438,2]
[361268868,1747407051710,-1591.66,0.00016438,2]
[361268869,1747407051720,-151.0,0.00016438,2]
[361268870,1747407051729,-952.93,0.00016438,2]
[361268871,1747407051740,-157.247651,0.00016438,2]
[361268872,1747407051749,-400.0,0.00016438,2]
[361268873,1747407051760,-400.0,0.00016438,2]
[361268874,1747407051770,-400.0,0.00016438,2]
[361268875,1747407051779,-400.0,0.00016438,2]
[361268876,1747407051789,-18761.83,0.00016438,2]
[361268877,1747407051798,-1362.0,0.00016438,2]
[361268878,1747407051808,-917.05,0.00016438,2]
[361268879,1747407051818,-157.247651,0.00016438,2]
[361268880,1747407051827,-400.0,0.00016438,2]
[361268881,1747407051836,-400.0,0.00016438,2]
[361268882,1747407051846,-169.93303285,0.00016438,2]
[361268883,1747407051859,-400.0,0.00016438,2]
[361268884,1747407051868,-1747.67,0.00016438,2]
[361268885,1747407051878,-400.0,0.00016438,2]
[361268886,1747407051887,-674.78,0.00016438,2]
[361268887,1747407051895,-504.36103769,0.00016438,2]
[361268888,1747407051905,-400.0,0.00016438,2]
[361268889,1747407051914,-542.81,0.00016438,2]
[361268890,1747407051924,-1225.75,0.00016438,2]
[361268891,1747407051933,-400.0,0.00016438,2]
[361268892,1747407051943,-760.66,0.00016438,2]
[361268893,1747407051953,-259.393037,0.00016438,2]
[361268894,1747407051962,-737.09,0.00016438,2]
[361268895,1747407051971,-420.07,0.00016438,2]
[361268896,1747407051981,-400.0,0.00016438,2]
[361268897,1747407051990,-582.64,0.00016438,2]
[361268898,1747407052000,-400.0,0.00016438,2]
[361268899,1747407052010,-3165.89,0.00016438,2]
[361268900,1747407052019,-5761.18,0.00016438,2]
[361268901,1747407052028,-400.0,0.00016438,2]
[361268902,1747407052037,-400.0,0.00016438,2]
[361268903,1747407052048,-511.64860947,0.00016438,2]
[361268904,1747407052058,-511.96,0.00016438,2]
[361268905,1747407052068,-480.01,0.00016438,2]
[361268906,1747407052078,-14096.86,0.00016438,2]
[361268907,1747407052087,-671.64,0.00016438,2]
[361268908,1747407052096,-1371.01,0.00016438,2]
[361268909,1747407052106,-562.1,0.00016438,2]
[361268910,1747407052115,-7654.17,0.00016438,2]
[361268911,1747407052125,-1108.69,0.00016438,2]
[361268912,1747407052135,-400.0,0.00016438,2]
[361268913,1747407052145,-1938.34,0.00016438,2]
[361268914,1747407052155,-400.0,0.00016438,2]
[361268915,1747407052165,-151.0,0.00016438,2]
[361268916,1747407052175,-400.0,0.00016438,2]
[361268917,1747407052185,-400.0,0.00016438,2]
[361268918,1747407052194,-394.4,0.00016438,2]
[361268919,1747407052204,-2143.54,0.00016438,2]
[361268920,1747407052214,-562.56,0.00016438,2]
[361268921,1747407052223,-400.0,0.00016438,2]
[361268922,1747407052233,-400.0,0.00016438,2]
[361268923,1747407052242,-566.94,0.00016438,2]
[361268924,1747407052251,-400.0,0.00016438,2]
[361268925,1747407052261,-1736.3,0.00016438,2]
[361268926,1747407052353,-400.0,0.00016438,2]
[361268927,1747407052362,-958.61,0.00016438,2]
[361268928,1747407052371,-406.91239022,0.00016438,2]
[361268929,1747407052380,-404.96305498,0.00016438,2]
[361268930,1747407052389,-758.12,0.00016438,2]
[361268931,1747407052399,-400.0,0.00016438,2]
[361268932,1747407052408,-20349.62715776,0.00016438,2]
[361268933,1747407052486,-3042.82284224,0.00016438,2]
[361268934,1747407052495,-1721.2,0.00016438,2]
[361268935,1747407052504,-400.0,0.00016438,2]
[361268936,1747407052512,-490.44,0.00016438,2]
[361268937,1747407052521,-1674.71,0.00016438,2]
[361268938,1747407052531,-1165.85,0.00016438,2]
[361268939,1747407052541,-400.0,0.00016438,2]
[361268940,1747407052550,-151.0,0.00016438,2]
[361268941,1747407052558,-1176.81,0.00016438,2]
[361268942,1747407052567,-965.72,0.00016438,2]
[361268943,1747407052576,-400.0,0.00016438,2]
[361268944,1747407052586,-400.0,0.00016438,2]
[361268945,1747407052595,-949.91,0.00016438,2]
[361268946,1747407052603,-557.2,0.00016438,2]
[361268947,1747407052612,-533.06,0.00016438,2]
[361268948,1747407052622,-2564.23,0.00016438,2]
[361268949,1747407052632,-194.7352327,0.00016438,2]
[361268950,1747407052642,-825.75,0.00016438,2]
[361268951,1747407052651,-2657.72,0.00016438,2]
[361268952,1747407052661,-141177.82,0.00016438,2]
[361268953,1747407052671,-400.0,0.00016438,2]
[361268954,1747407052680,-450.21,0.00016438,2]
[361268955,1747407052689,-400.0,0.00016438,2]
[361268956,1747407052698,-759.0,0.00016438,2]
[361268957,1747407052707,-1278.31,0.00016438,2]
[361268958,1747407052716,-474.98,0.00016438,2]
[361268959,1747407052725,-151.0,0.00016438,2]
[361268960,1747407052734,-1048.33,0.00016438,2]
[361268961,1747407052744,-400.0,0.00016438,2]
[361268962,1747407052753,-400.0,0.00016438,2]
[361268963,1747407052762,-7334.35,0.00016438,2]
[361268964,1747407052771,-151.0,0.00016438,2]
[361268965,1747407052780,-400.0,0.00016438,2]
[361268966,1747407052790,-609.36,0.00016438,2]
[361268967,1747407052799,-400.0,0.00016438,2]
[361268968,1747407052809,-400.0,0.00016438,2]
[361268969,1747407052818,-9689.09,0.00016438,2]
[361268970,1747407052827,-151.0,0.00016438,2]
[361268971,1747407052837,-400.0,0.00016438,2]
[361268972,1747407052846,-477.07722952,0.00016438,2]
[361268973,1747407052859,-400.0,0.00016438,2]
[361268974,1747407052868,-151.0,0.00016438,2]
[361268975,1747407052877,-400.0,0.00016438,2]
[361268976,1747407052886,-667.27,0.00016438,2]
[361268977,1747407052898,-470.48,0.00016438,2]
[361268978,1747407052907,-1587.29,0.00016438,2]
[361268979,1747407052916,-6466.89,0.00016438,2]
[361268980,1747407052926,-2146.36,0.00016438,2]
[361268981,1747407052935,-508.15,0.00016438,2]
[361268982,1747407052944,-400.0,0.00016438,2]
[361268983,1747407052953,-400.0,0.00016438,2]
[361268984,1747407052964,-1143.44,0.00016438,2]
[361268985,1747407052973,-400.0,0.00016438,2]
[361268986,1747407052982,-400.0,0.00016438,2]
[361268987,1747407052991,-549.76,0.00016438,2]
[361268988,1747407053000,-3289.23,0.00016438,2]
[361268989,1747407053009,-451.21,0.00016438,2]
[361268990,1747407053018,-805.61,0.00016438,2]
[361268991,1747407053027,-750.71,0.00016438,2]
[361268992,1747407053036,-400.0,0.00016438,2]
[361268993,1747407053047,-1015.61,0.00016438,2]
[361268994,1747407053060,-400.0,0.00016438,2]
[361268995,1747407053069,-400.0,0.00016438,2]
[361268996,1747407053079,-400.0,0.00016438,2]
[361268997,1747407053088,-400.0,0.00016438,2]
[361268998,1747407053097,-400.0,0.00016438,2]
[361268999,1747407053106,-485.52,0.00016438,2]
[361269000,1747407053116,-12465.7,0.00016438,2]
[361269001,1747407053125,-477.69,0.00016438,2]
[361269002,1747407053135,-2050.18,0.00016438,2]
[361269003,1747407053145,-480.59,0.00016438,2]
[361269004,1747407053155,-1424.67,0.00016438,2]
[361269005,1747407053164,-400.0,0.00016438,2]
[361269006,1747407053173,-400.0,0.00016438,2]
[361269007,1747407053183,-400.0,0.00016438,2]
[361269008,1747407053193,-851.89,0.00016438,2]
[361269009,1747407053202,-400.0,0.00016438,2]
[361269010,1747407053212,-2175.54,0.00016438,2]
[361269011,1747407053221,-511.49,0.00016438,2]
[361269012,1747407053230,-400.0,0.00016438,2]
[361269013,1747407053239,-400.0,0.00016438,2]
[361269014,1747407053248,-400.0,0.00016438,2]
[361269015,1747407053258,-3284.64,0.00016438,2]
[361269016,1747407053268,-400.0,0.00016438,2]
[361269017,1747407053277,-1192.14,0.00016438,2]
[361269018,1747407053288,-400.0,0.00016438,2]
[361269019,1747407053298,-824.12,0.00016438,2]
[361269020,1747407053308,-151.0,0.00016438,2]
[361269021,1747407053318,-400.0,0.00016438,2]
[361269022,1747407053328,-1694.59,0.00016438,2]
[361269023,1747407053338,-500.0,0.00016438,2]
[361269024,1747407053347,-500.0,0.00016438,2]
[361269025,1747407053357,-500.0,0.00016438,2]
[361269026,1747407053367,-400.0,0.00016438,2]
[361269027,1747407053377,-7313.55,0.00016438,2]
[361269028,1747407053387,-401.63203726,0.00016438,2]
[361269029,1747407053396,-400.0,0.00016438,2]
[361269030,1747407053405,-400.0,0.00016438,2]
[361269031,1747407053415,-2455.43,0.00016438,2]
[361269032,1747407053424,-400.0,0.00016438,2]
[361269033,1747407053434,-1498.12,0.00016438,2]
[361269034,1747407053444,-400.0,0.00016438,2]
[361269035,1747407053454,-1577.25,0.00016438,2]
[361269036,1747407053463,-1159.79,0.00016438,2]
[361269037,1747407053472,-400.0,0.00016438,2]
[361269038,1747407053482,-151.0,0.00016438,2]
[361269039,1747407053491,-629.3,0.00016438,2]
[361269040,1747407053500,-400.0,0.00016438,2]
[361269041,1747407053509,-664.85,0.00016438,2]
[361269042,1747407053518,-897.7,0.00016438,2]
[361269043,1747407053528,-589.69,0.00016438,2]
[361269044,1747407053537,-400.0,0.00016438,2]
[361269045,1747407053549,-400.0,0.00016438,2]
[361269046,1747407053560,-400.0,0.00016438,2]
[361269047,1747407053569,-400.0,0.00016438,2]
[361269048,1747407053578,-400.0,0.00016438,2]
[361269049,1747407053588,-1519.95,0.00016438,2]
[361269050,1747407053598,-2648.86,0.00016438,2]
[361269051,1747407053607,-961.6,0.00016438,2]
[361269052,1747407053616,-400.0,0.00016438,2]
[361269053,1747407053626,-400.0,0.00016438,2]
[361269054,1747407053636,-470.84,0.00016438,2]
[361269055,1747407053647,-400.0,0.00016438,2]
[361269056,1747407053657,-400.0,0.00016438,2]
[361269057,1747407053667,-1774.02,0.00016438,2]
[361269058,1747407053676,-2852.25,0.00016438,2]
[361269059,1747407053686,-446.09226436,0.00016438,2]
[361269060,1747407053695,-400.0,0.00016438,2]
[361269061,1747407053705,-754.17,0.00016438,2]
[361269062,1747407053715,-1332.53,0.00016438,2]
[361269063,1747407053725,-458.82,0.00016438,2]
[361269064,1747407053735,-1404.81,0.00016438,2]
[361269065,1747407053745,-607.57,0.00016438,2]
[361269066,1747407053754,-503.20390505,0.00016438,2]
[361269067,1747407053764,-441.88,0.00016438,2]
[361269068,1747407053774,-17562.33,0.00016438,2]
[361269069,1747407053784,-400.0,0.00016438,2]
[361269070,1747407053795,-4642.84,0.00016438,2]
[361269071,1747407053806,-151.0,0.00016438,2]
[361269072,1747407053819,-400.0,0.00016438,2]
[361269073,1747407053829,-1783.67,0.00016438,2]
[361269074,1747407053839,-1269.0,0.00016438,2]
[361269075,1747407053849,-1746.04,0.00016438,2]
[361269076,1747407053862,-400.0,0.00016438,2]
[361269077,1747407053872,-178.16532751,0.00016438,2]
[361269078,1747407053881,-400.0,0.00016438,2]
[361269079,1747407053890,-676.77,0.00016438,2]
[361269080,1747407053900,-400.0,0.00016438,2]
[361269081,1747407053909,-400.0,0.00016438,2]
[361269082,1747407053918,-791.17,0.00016438,2]
[361269083,1747407053927,-400.0,0.00016438,2]
[361269084,1747407053937,-400.0,0.00016438,2]
[361269085,1747407053946,-542.34,0.00016438,2]
[361269086,1747407053957,-400.0,0.00016438,2]
[361269087,1747407053966,-609.88,0.00016438,2]
[361269088,1747407053975,-400.0,0.00016438,2]
[361269089,1747407053984,-3415.13,0.00016438,2]
[361269090,1747407053994,-400.0,0.00016438,2]
[361269091,1747407054003,-1653.32,0.00016438,2]
[361269092,1747407054012,-1094.49,0.00016438,2]
[361269093,1747407054021,-477.56,0.00016438,2]
[361269094,1747407054031,-400.0,0.00016438,2]
[361269095,1747407054041,-1348.38,0.00016438,2]
[361269096,1747407054050,-151.0,0.00016438,2]
[361269097,1747407054060,-2668.8,0.00016438,2]
[361269098,1747407054069,-540.2,0.00016438,2]
[361269099,1747407054078,-704.76,0.00016438,2]
[361269100,1747407054087,-400.0,0.00016438,2]
[361269101,1747407054097,-400.0,0.00016438,2]
[361269102,1747407054106,-250.81261458,0.00016438,2]
[361269103,1747407054115,-3756.98,0.00016438,2]
[361269104,1747407054124,-780.23,0.00016438,2]
[361269105,1747407054134,-400.0,0.00016438,2]
[361269106,1747407054143,-400.0,0.00016438,2]
[361269107,1747407054152,-1123.98,0.00016438,2]
[361269108,1747407054161,-151.0,0.00016438,2]
[361269109,1747407054170,-456.05,0.00016438,2]
[361269110,1747407054179,-5608.77,0.00016438,2]
[361269111,1747407054189,-400.0,0.00016438,2]
[361269112,1747407054198,-400.0,0.00016438,2]
[361269113,1747407054208,-3770.29,0.00016438,2]
[361269114,1747407054217,-2546.92,0.00016438,2]
[361269115,1747407054227,-400.0,0.00016438,2]
[361269116,1747407054237,-576.72,0.00016438,2]
[361269117,1747407054246,-400.0,0.00016438,2]
[361269118,1747407054255,-400.0,0.00016438,2]
[361269119,1747407054265,-1125.59,0.00016438,2]
[361269120,1747407054274,-2796.52,0.00016438,2]
[361269121,1747407054284,-229.46824299,0.00016438,2]
[361269122,1747407054293,-400.0,0.00016438,2]
[361269123,1747407054302,-400.0,0.00016438,2]
[361269124,1747407054311,-400.0,0.00016438,2]
[361269125,1747407054320,-400.0,0.00016438,2]
[361269126,1747407054329,-400.0,0.00016438,2]
[361269127,1747407054339,-1517.87,0.00016438,2]
[361269128,1747407054348,-790.6,0.00016438,2]
[361269129,1747407054358,-1862.39,0.00016438,2]
[361269130,1747407054367,-400.0,0.00016438,2]
[361269131,1747407054376,-818.5,0.00016438,2]
[361269132,1747407054385,-460.65,0.00016438,2]
[361269133,1747407054395,-400.0,0.00016438,2]
[361269134,1747407054404,-785.13,0.00016438,2]
[361269135,1747407054413,-968.11,0.00016438,2]
[361269136,1747407054422,-2486.17,0.00016438,2]
[361269137,1747407054432,-175.71037448,0.00016438,2]
[361269138,1747407054441,-316.33096944,0.00016438,2]
[361269139,1747407054450,-3890.73,0.00016438,2]
[361269140,1747407054459,-878.0,0.00016438,2]
[361269141,1747407054469,-400.0,0.00016438,2]
[361269142,1747407054478,-400.0,0.00016438,2]
[361269143,1747407054487,-524.1151292,0.00016438,2]
[361269144,1747407054496,-1043.17,0.00016438,2]
[361269145,1747407054506,-8558.01,0.00016438,2]
[361269146,1747407054515,-4983.29,0.00016438,2]
[361269147,1747407054524,-400.0,0.00016438,2]
[361269148,1747407054533,-400.0,0.00016438,2]
[361269149,1747407054543,-963.3,0.00016438,2]
[361269150,1747407054553,-151.0,0.00016438,2]
[361269151,1747407054563,-586.57,0.00016438,2]
[361269152,1747407054573,-2914.53,0.00016438,2]
[361269153,1747407054582,-430.1,0.00016438,2]
[361269154,1747407054591,-151.0,0.00016438,2]
[361269155,1747407054600,-885.94,0.00016438,2]